fUSD/lending_fUSD_20260530
["ID","MTS","AMOUNT","RATE_DAILY","PERIOD"]
[423468285,1780147840000,-150.0,0.00013389,2]
[423468287,1780147840000,-150.0,0.00013389,2]
[423468290,1780147840000,-1590.0,0.000134,2]
[423468289,1780147840000,-6136.5148,0.00013398,2]
[423468286,1780147840000,-150.0,0.00013389,2]
[423468294,1780147840000,-150.0,0.00013424,2]
[423468300,1780147840000,-300.0,0.00013433,2]
[423468288,1780147840000,-150.0,0.00013389,2]
[423468301,1780147840000,-26105.0903972,0.00013434,2]
[423468297,1780147840000,-500.0,0.00013424,2]
[423468299,1780147840000,-500.0,0.00013424,2]
[423468298,1780147840000,-500.0,0.00013424,2]
[423468303,1780147840000,-927009.1590687,0.00013434,2]
[423468291,1780147840000,-150.0,0.00013406,2]
[423468295,1780147840000,-500.0,0.00013424,2]
[423468296,1780147840000,-500.0,0.00013424,2]
[423468293,1780147840000,-1288.0,0.00013407,5]
[423468292,1780147840000,-1330.0,0.00013407,5]
[423468374,1780147841000,-350.0,0.00013604,2]
[423468376,1780147841000,-150.0,0.00013609,2]
[423468371,1780147841000,-443.0,0.000136,2]
[423468373,1780147841000,-150.0,0.00013602,2]
[423468368,1780147841000,-500.0,0.00013599,2]
[423468363,1780147841000,-200.0,0.00013587,2]
[423468364,1780147841000,-200.0,0.00013588,2]
[423468366,1780147841000,-151.0,0.00013596,2]
[423468367,1780147841000,-150.0,0.00013597,2]
[423468375,1780147841000,-166.5,0.00013609,2]
[423468369,1780147841000,-1000.0,0.000136,2]
[423468377,1780147841000,-150.0,0.00013612,2]
[423468390,1780147841000,-150.0,0.00013672,2]
[423468370,1780147841000,-315.0,0.000136,2]
[423468372,1780147841000,-309.0,0.000136,2]
[423468378,1780147841000,-150.0,0.00013614,2]
[423468381,1780147841000,-366.259,0.00013631,2]
[423468380,1780147841000,-4827.142,0.00013631,2]
[423468389,1780147841000,-150.0,0.00013668,2]
[423468382,1780147841000,-150.0,0.00013631,2]
[423468384,1780147841000,-874.0,0.00013634,5]
[423468386,1780147841000,-150.0,0.00013649,2]
[423468383,1780147841000,-200.0,0.00013633,2]
[423468391,1780147841000,-150.0,0.00013683,2]
[423468362,1780147841000,-163.0,0.0001358,2]
[423468379,1780147841000,-150.0,0.00013621,2]
[423468361,1780147841000,-150.0,0.00013579,2]
[423468334,1780147841000,-150.0,0.00013499,2]
[423468360,1780147841000,-150.0,0.00013575,2]
[423468387,1780147841000,-150.0,0.00013665,2]
[423468333,1780147841000,-159.62619924,0.00013498,2]
[423468335,1780147841000,-1000.0,0.000135,2]
[423468338,1780147841000,-2000.0,0.00013511,2]
[423468341,1780147841000,-13659.93918001,0.00013517,2]
[423468337,1780147841000,-150.0,0.0001351,2]
[423468340,1780147841000,-150.0,0.00013513,2]
[423468342,1780147841000,-1351.73,0.00013527,2]
[423468343,1780147841000,-150.0,0.00013527,2]
[423468339,1780147841000,-1244.15,0.00013511,2]
[423468345,1780147841000,-150.0,0.00013531,2]
[423468344,1780147841000,-150.0,0.00013529,2]
[423468359,1780147841000,-150.0,0.00013575,2]
[423468348,1780147841000,-150.0,0.00013545,2]
[423468346,1780147841000,-22799.93006848,0.00013534,2]
[423468349,1780147841000,-150.0,0.00013554,2]
[423468350,1780147841000,-648.30448,0.0001356,2]
[423468355,1780147841000,-300.0,0.00013566,2]
[423468351,1780147841000,-648.30448,0.0001356,2]
[423468353,1780147841000,-150.0,0.00013562,2]
[423468354,1780147841000,-735.92710806,0.00013565,2]
[423468352,1780147841000,-648.30448,0.0001356,2]
[423468357,1780147841000,-2545.17836197,0.0001357,2]
[423468356,1780147841000,-151.0,0.00013567,2]
[423468358,1780147841000,-1197.94411619,0.0001357,2]
[423468365,1780147841000,-200.0,0.00013588,2]
[423468347,1780147841000,-150.0,0.00013538,2]
[423468388,1780147841000,-150.0,0.00013666,2]
[423468336,1780147841000,-350.0,0.00013507,3]
[423468392,1780147841000,-150.0,0.00013687,2]
[423468422,1780147841000,-500.0,0.00013698,2]
[423468424,1780147841000,-500.0,0.00013698,2]
[423468420,1780147841000,-500.0,0.00013698,2]
[423468423,1780147841000,-500.0,0.00013698,2]
[423468428,1780147841000,-500.0,0.00013698,2]
[423468427,1780147841000,-500.0,0.00013698,2]
[423468430,1780147841000,-500.0,0.00013698,2]
[423468429,1780147841000,-500.0,0.00013698,2]
[423468431,1780147841000,-500.0,0.00013698,2]
[423468436,1780147841000,-500.0,0.00013698,2]
[423468437,1780147841000,-500.0,0.00013698,2]
[423468433,1780147841000,-500.0,0.00013698,2]
[423468425,1780147841000,-500.0,0.00013698,2]
[423468435,1780147841000,-500.0,0.00013698,2]
[423468432,1780147841000,-500.0,0.00013698,2]
[423468438,1780147841000,-500.0,0.00013698,2]
[423468439,1780147841000,-500.0,0.00013698,2]
[423468448,1780147841000,-410.30161227,0.00013698,2]
[423468443,1780147841000,-151.0,0.00013698,2]
[423468441,1780147841000,-500.0,0.00013698,2]
[423468444,1780147841000,-500.0,0.00013698,2]
[423468440,1780147841000,-500.0,0.00013698,2]
[423468442,1780147841000,-500.0,0.00013698,2]
[423468445,1780147841000,-500.0,0.00013698,2]
[423468447,1780147841000,-151.0,0.00013698,2]
[423468385,1780147841000,-150.0,0.00013637,2]
[423468434,1780147841000,-500.0,0.00013698,2]
[423468426,1780147841000,-500.0,0.00013698,2]
[423468446,1780147841000,-500.0,0.00013698,2]
[423468421,1780147841000,-500.0,0.00013698,2]
[423468419,1780147841000,-500.0,0.00013698,2]
[423468393,1780147841000,-7530.82803598,0.00013688,2]
[423468395,1780147841000,-151.0,0.00013696,2]
[423468404,1780147841000,-502.31004729,0.00013698,2]
[423468397,1780147841000,-9605.2203757,0.00013698,2]
[423468402,1780147841000,-500.0,0.00013698,2]
[423468398,1780147841000,-151.0,0.00013698,2]
[423468400,1780147841000,-500.0,0.00013698,2]
[423468396,1780147841000,-151.0,0.00013696,2]
[423468399,1780147841000,-500.0,0.00013698,2]
[423468401,1780147841000,-500.0,0.00013698,2]
[423468403,1780147841000,-500.0,0.00013698,2]
[423468406,1780147841000,-500.0,0.00013698,2]
[423468394,1780147841000,-151.0,0.00013695,2]
[423468407,1780147841000,-500.0,0.00013698,2]
[423468405,1780147841000,-161.53446073,0.00013698,2]
[423468417,1780147841000,-500.0,0.00013698,2]
[423468413,1780147841000,-500.0,0.00013698,2]
[423468411,1780147841000,-500.0,0.00013698,2]
[423468414,1780147841000,-500.0,0.00013698,2]
[423468418,1780147841000,-500.0,0.00013698,2]
[423468412,1780147841000,-500.0,0.00013698,2]
[423468416,1780147841000,-500.0,0.00013698,2]
[423468410,1780147841000,-500.0,0.00013698,2]
[423468409,1780147841000,-500.0,0.00013698,2]
[423468408,1780147841000,-500.0,0.00013698,2]
[423468415,1780147841000,-500.0,0.00013698,2]
[423468484,1780147842000,-500.0,0.00013698,2]
[423468486,1780147842000,-500.0,0.00013698,2]
[423468482,1780147842000,-500.0,0.00013698,2]
[423468491,1780147842000,-500.0,0.00013698,2]
[423468477,1780147842000,-500.0,0.00013698,2]
[423468480,1780147842000,-387.24040857,0.00013698,2]
[423468475,1780147842000,-575.78,0.00013698,2]
[423468487,1780147842000,-500.0,0.00013698,2]
[423468478,1780147842000,-500.0,0.00013698,2]
[423468481,1780147842000,-500.0,0.00013698,2]
[423468473,1780147842000,-575.78,0.00013698,2]
[423468501,1780147842000,-500.0,0.00013698,2]
[423468485,1780147842000,-500.0,0.00013698,2]
[423468488,1780147842000,-500.0,0.00013698,2]
[423468483,1780147842000,-500.0,0.00013698,2]
[423468490,1780147842000,-500.0,0.00013698,2]
[423468495,1780147842000,-500.0,0.00013698,2]
[423468497,1780147842000,-500.0,0.00013698,2]
[423468493,1780147842000,-207.9347959,0.00013698,2]
[423468494,1780147842000,-500.0,0.00013698,2]
[423468496,1780147842000,-500.0,0.00013698,2]
[423468479,1780147842000,-500.0,0.00013698,2]
[423468498,1780147842000,-500.0,0.00013698,2]
[423468489,1780147842000,-500.0,0.00013698,2]
[423468476,1780147842000,-575.78,0.00013698,2]
[423468460,1780147842000,-500.0,0.00013698,2]
[423468471,1780147842000,-575.78,0.00013698,2]
[423468492,1780147842000,-500.0,0.00013698,2]
[423468449,1780147842000,-154.228993,0.00013698,2]
[423468450,1780147842000,-295.37631974,0.00013698,2]
[423468457,1780147842000,-500.0,0.00013698,2]
[423468455,1780147842000,-500.0,0.00013698,2]
[423468454,1780147842000,-500.0,0.00013698,2]
[423468453,1780147842000,-420.45070713,0.00013698,2]
[423468458,1780147842000,-500.0,0.00013698,2]
[423468451,1780147842000,-500.0,0.00013698,2]
[423468452,1780147842000,-500.0,0.00013698,2]
[423468456,1780147842000,-500.0,0.00013698,2]
[423468459,1780147842000,-500.0,0.00013698,2]
[423468461,1780147842000,-500.0,0.00013698,2]
[423468467,1780147842000,-575.78,0.00013698,2]
[423468463,1780147842000,-500.0,0.00013698,2]
[423468462,1780147842000,-500.0,0.00013698,2]
[423468465,1780147842000,-575.78,0.00013698,2]
[423468468,1780147842000,-575.78,0.00013698,2]
[423468464,1780147842000,-575.78,0.00013698,2]
[423468466,1780147842000,-575.78,0.00013698,2]
[423468469,1780147842000,-575.78,0.00013698,2]
[423468470,1780147842000,-575.78,0.00013698,2]
[423468472,1780147842000,-575.78,0.00013698,2]
[423468474,1780147842000,-575.78,0.00013698,2]
[423468499,1780147842000,-500.0,0.00013698,2]
[423468502,1780147842000,-500.0,0.00013698,2]
[423468543,1780147842000,-500.0,0.00013698,2]
[423468532,1780147842000,-500.0,0.00013698,2]
[423468531,1780147842000,-500.0,0.00013698,2]
[423468534,1780147842000,-500.0,0.00013698,2]
[423468536,1780147842000,-500.0,0.00013698,2]
[423468545,1780147842000,-500.0,0.00013698,2]
[423468540,1780147842000,-500.0,0.00013698,2]
[423468538,1780147842000,-266.90977676,0.00013698,2]
[423468550,1780147842000,-500.0,0.00013698,2]
[423468542,1780147842000,-500.0,0.00013698,2]
[423468549,1780147842000,-500.0,0.00013698,2]
[423468548,1780147842000,-500.0,0.00013698,2]
[423468544,1780147842000,-500.0,0.00013698,2]
[423468546,1780147842000,-500.0,0.00013698,2]
[423468547,1780147842000,-500.0,0.00013698,2]
[423468551,1780147842000,-500.0,0.00013698,2]
[423468558,1780147842000,-500.0,0.00013698,2]
[423468555,1780147842000,-500.0,0.00013698,2]
[423468553,1780147842000,-553.36280109,0.00013698,2]
[423468552,1780147842000,-500.0,0.00013698,2]
[423468556,1780147842000,-3453.62,0.00013698,2]
[423468554,1780147842000,-500.0,0.00013698,2]
[423468500,1780147842000,-500.0,0.00013698,2]
[423468557,1780147842000,-3453.62,0.00013698,2]
[423468530,1780147842000,-648.30448,0.00013698,2]
[423468535,1780147842000,-500.0,0.00013698,2]
[423468533,1780147842000,-500.0,0.00013698,2]
[423468526,1780147842000,-500.0,0.00013698,2]
[423468503,1780147842000,-500.0,0.00013698,2]
[423468504,1780147842000,-500.0,0.00013698,2]
[423468505,1780147842000,-500.0,0.00013698,2]
[423468507,1780147842000,-500.0,0.00013698,2]
[423468509,1780147842000,-500.0,0.00013698,2]
[423468511,1780147842000,-500.0,0.00013698,2]
[423468506,1780147842000,-500.0,0.00013698,2]
[423468508,1780147842000,-500.0,0.00013698,2]
[423468529,1780147842000,-648.30448,0.00013698,2]
[423468512,1780147842000,-245.97684644,0.00013698,2]
[423468523,1780147842000,-500.0,0.00013698,2]
[423468514,1780147842000,-500.0,0.00013698,2]
[423468513,1780147842000,-500.0,0.00013698,2]
[423468510,1780147842000,-512.05018733,0.00013698,2]
[423468521,1780147842000,-500.0,0.00013698,2]
[423468516,1780147842000,-500.0,0.00013698,2]
[423468520,1780147842000,-500.0,0.00013698,2]
[423468524,1780147842000,-500.0,0.00013698,2]
[423468515,1780147842000,-500.0,0.00013698,2]
[423468518,1780147842000,-500.0,0.00013698,2]
[423468519,1780147842000,-500.0,0.00013698,2]
[423468525,1780147842000,-500.0,0.00013698,2]
[423468522,1780147842000,-500.0,0.00013698,2]
[423468528,1780147842000,-648.30448,0.00013698,2]
[423468527,1780147842000,-811.03,0.00013698,2]
[423468593,1780147843000,-500.0,0.00013698,2]
[423468608,1780147843000,-494.481074,0.00013699,2]
[423468598,1780147843000,-500.0,0.00013698,2]
[423468603,1780147843000,-6104.33,0.00013699,2]
[423468592,1780147843000,-500.0,0.00013698,2]
[423468588,1780147843000,-500.0,0.00013698,2]
[423468596,1780147843000,-500.0,0.00013698,2]
[423468587,1780147843000,-500.0,0.00013698,2]
[423468597,1780147843000,-500.0,0.00013698,2]
[423468599,1780147843000,-500.0,0.00013698,2]
[423468595,1780147843000,-500.0,0.00013698,2]
[423468606,1780147843000,-2500.0,0.00013699,2]
[423468619,1780147843000,-494.481074,0.00013699,2]
[423468604,1780147843000,-151.0,0.00013699,2]
[423468602,1780147843000,-1000.0,0.00013699,2]
[423468605,1780147843000,-151.0,0.00013699,2]
[423468607,1780147843000,-166.66,0.00013699,2]
[423468601,1780147843000,-209.534056,0.00013698,2]
[423468609,1780147843000,-494.481074,0.00013699,2]
[423468610,1780147843000,-494.481074,0.00013699,2]
[423468612,1780147843000,-494.481074,0.00013699,2]
[423468611,1780147843000,-494.481074,0.00013699,2]
[423468613,1780147843000,-494.481074,0.00013699,2]
[423468614,1780147843000,-494.481074,0.00013699,2]
[423468591,1780147843000,-500.0,0.00013698,2]
[423468600,1780147843000,-500.0,0.00013698,2]
[423468594,1780147843000,-500.0,0.00013698,2]
[423468561,1780147843000,-3453.62,0.00013698,2]
[423468589,1780147843000,-500.0,0.00013698,2]
[423468560,1780147843000,-500.0,0.00013698,2]
[423468559,1780147843000,-3453.62,0.00013698,2]
[423468565,1780147843000,-3453.62,0.00013698,2]
[423468573,1780147843000,-3453.62,0.00013698,2]
[423468564,1780147843000,-448.29,0.00013698,2]
[423468566,1780147843000,-3453.62,0.00013698,2]
[423468571,1780147843000,-3453.62,0.00013698,2]
[423468567,1780147843000,-3453.62,0.00013698,2]
[423468563,1780147843000,-3453.62,0.00013698,2]
[423468562,1780147843000,-500.0,0.00013698,2]
[423468569,1780147843000,-3453.62,0.00013698,2]
[423468568,1780147843000,-3453.62,0.00013698,2]
[423468572,1780147843000,-3453.62,0.00013698,2]
[423468574,1780147843000,-500.0,0.00013698,2]
[423468586,1780147843000,-500.0,0.00013698,2]
[423468584,1780147843000,-500.0,0.00013698,2]
[423468585,1780147843000,-500.0,0.00013698,2]
[423468576,1780147843000,-500.0,0.00013698,2]
[423468577,1780147843000,-500.0,0.00013698,2]
[423468583,1780147843000,-500.0,0.00013698,2]
[423468580,1780147843000,-500.0,0.00013698,2]
[423468575,1780147843000,-500.0,0.00013698,2]
[423468579,1780147843000,-500.0,0.00013698,2]
[423468581,1780147843000,-500.0,0.00013698,2]
[423468582,1780147843000,-500.0,0.00013698,2]
[423468590,1780147843000,-500.0,0.00013698,2]
[423468616,1780147843000,-494.481074,0.00013699,2]
[423468670,1780147843000,-4687.320992,0.00013699,2]
[423468615,1780147843000,-494.481074,0.00013699,2]
[423468647,1780147843000,-193.519007,0.00013699,2]
[423468649,1780147843000,-193.519007,0.00013699,2]
[423468653,1780147843000,-193.519007,0.00013699,2]
[423468646,1780147843000,-279.960539,0.00013699,2]
[423468651,1780147843000,-193.519007,0.00013699,2]
[423468652,1780147843000,-193.519007,0.00013699,2]
[423468654,1780147843000,-193.519007,0.00013699,2]
[423468656,1780147843000,-193.519007,0.00013699,2]
[423468664,1780147843000,-4687.320992,0.00013699,2]
[423468655,1780147843000,-193.519007,0.00013699,2]
[423468658,1780147843000,-193.519007,0.00013699,2]
[423468661,1780147843000,-4687.320992,0.00013699,2]
[423468657,1780147843000,-193.519007,0.00013699,2]
[423468660,1780147843000,-721.0,0.00013699,2]
[423468663,1780147843000,-4687.320992,0.00013699,2]
[423468662,1780147843000,-4687.320992,0.00013699,2]
[423468665,1780147843000,-4687.320992,0.00013699,2]
[423468669,1780147843000,-4687.320992,0.00013699,2]
[423468666,1780147843000,-4687.320992,0.00013699,2]
[423468668,1780147843000,-4687.320992,0.00013699,2]
[423468673,1780147843000,-4687.320992,0.00013699,2]
[423468667,1780147843000,-4687.320992,0.00013699,2]
[423468671,1780147843000,-4687.320992,0.00013699,2]
[423468672,1780147843000,-4687.320992,0.00013699,2]
[423468618,1780147843000,-494.481074,0.00013699,2]
[423468648,1780147843000,-193.519007,0.00013699,2]
[423468650,1780147843000,-193.519007,0.00013699,2]
[423468659,1780147843000,-200.0,0.00013699,2]
[423468643,1780147843000,-151.0,0.00013699,2]
[423468617,1780147843000,-494.481074,0.00013699,2]
[423468645,1780147843000,-151.0,0.00013699,2]
[423468620,1780147843000,-151.0,0.00013699,2]
[423468623,1780147843000,-151.0,0.00013699,2]
[423468626,1780147843000,-151.0,0.00013699,2]
[423468622,1780147843000,-151.0,0.00013699,2]
[423468628,1780147843000,-151.0,0.00013699,2]
[423468625,1780147843000,-510.73,0.00013699,2]
[423468621,1780147843000,-151.0,0.00013699,2]
[423468624,1780147843000,-151.0,0.00013699,2]
[423468629,1780147843000,-151.0,0.00013699,2]
[423468630,1780147843000,-151.0,0.00013699,2]
[423468631,1780147843000,-151.0,0.00013699,2]
[423468627,1780147843000,-151.0,0.00013699,2]
[423468642,1780147843000,-151.0,0.00013699,2]
[423468644,1780147843000,-151.0,0.00013699,2]
[423468636,1780147843000,-151.0,0.00013699,2]
[423468641,1780147843000,-151.0,0.00013699,2]
[423468640,1780147843000,-151.0,0.00013699,2]
[423468634,1780147843000,-151.0,0.00013699,2]
[423468639,1780147843000,-151.0,0.00013699,2]
[423468633,1780147843000,-151.0,0.00013699,2]
[423468638,1780147843000,-151.0,0.00013699,2]
[423468637,1780147843000,-151.0,0.00013699,2]
[423468632,1780147843000,-151.0,0.00013699,2]
[423468635,1780147843000,-151.0,0.00013699,2]
[423468710,1780147844000,-500.0,0.00013699,2]
[423468726,1780147844000,-500.0,0.00013699,2]
[423468725,1780147844000,-500.0,0.00013699,2]
[423468709,1780147844000,-500.0,0.00013699,2]
[423468703,1780147844000,-4687.320992,0.00013699,2]
[423468706,1780147844000,-500.0,0.00013699,2]
[423468707,1780147844000,-500.0,0.00013699,2]
[423468711,1780147844000,-500.0,0.00013699,2]
[423468713,1780147844000,-500.0,0.00013699,2]
[423468708,1780147844000,-500.0,0.00013699,2]
[423468715,1780147844000,-500.0,0.00013699,2]
[423468702,1780147844000,-4687.320992,0.00013699,2]
[423468714,1780147844000,-500.0,0.00013699,2]
[423468729,1780147844000,-500.0,0.00013699,2]
[423468718,1780147844000,-500.0,0.00013699,2]
[423468723,1780147844000,-500.0,0.00013699,2]
[423468720,1780147844000,-500.0,0.00013699,2]
[423468719,1780147844000,-500.0,0.00013699,2]
[423468721,1780147844000,-500.0,0.00013699,2]
[423468722,1780147844000,-460.77326892,0.00013699,2]
[423468716,1780147844000,-500.0,0.00013699,2]
[423468724,1780147844000,-500.0,0.00013699,2]
[423468728,1780147844000,-500.0,0.00013699,2]
[423468738,1780147844000,-500.0,0.00013699,2]
[423468732,1780147844000,-500.0,0.00013699,2]
[423468712,1780147844000,-500.0,0.00013699,2]
[423468717,1780147844000,-500.0,0.00013699,2]
[423468704,1780147844000,-4687.320996,0.00013699,2]
[423468676,1780147844000,-4687.320992,0.00013699,2]
[423468692,1780147844000,-494.481083,0.00013699,2]
[423468675,1780147844000,-4687.320992,0.00013699,2]
[423468674,1780147844000,-4687.320992,0.00013699,2]
[423468678,1780147844000,-154.0,0.00013699,2]
[423468677,1780147844000,-187.71242717,0.00013699,10]
[423468679,1780147844000,-156.2014279,0.00013699,2]
[423468680,1780147844000,-152.68221,0.00013699,2]
[423468682,1780147844000,-151.0,0.00013699,2]
[423468681,1780147844000,-151.0,0.00013699,2]
[423468683,1780147844000,-151.0,0.00013699,2]
[423468686,1780147844000,-494.481074,0.00013699,2]
[423468684,1780147844000,-238.640509,0.00013699,2]
[423468685,1780147844000,-494.481074,0.00013699,2]
[423468687,1780147844000,-494.481074,0.00013699,2]
[423468688,1780147844000,-494.481074,0.00013699,2]
[423468700,1780147844000,-193.519002,0.00013699,2]
[423468690,1780147844000,-494.481074,0.00013699,2]
[423468697,1780147844000,-193.519007,0.00013699,2]
[423468693,1780147844000,-193.519007,0.00013699,2]
[423468695,1780147844000,-193.519007,0.00013699,2]
[423468691,1780147844000,-494.481074,0.00013699,2]
[423468689,1780147844000,-494.481074,0.00013699,2]
[423468727,1780147844000,-500.0,0.00013699,2]
[423468694,1780147844000,-193.519007,0.00013699,2]
[423468699,1780147844000,-193.519007,0.00013699,2]
[423468701,1780147844000,-4687.320992,0.00013699,2]
[423468696,1780147844000,-193.519007,0.00013699,2]
[423468698,1780147844000,-193.519007,0.00013699,2]
[423468705,1780147844000,-500.0,0.00013699,2]
[423468731,1780147844000,-500.0,0.00013699,2]
[423468765,1780147844000,-150.0,0.00013761,2]
[423468734,1780147844000,-500.0,0.00013699,2]
[423468763,1780147844000,-150.0,0.00013761,2]
[423468768,1780147844000,-433.0,0.00013763,2]
[423468769,1780147844000,-200.0,0.00013769,2]
[423468773,1780147844000,-154.66134378,0.000138,2]
[423468766,1780147844000,-150.0,0.00013761,2]
[423468771,1780147844000,-150.0,0.00013775,2]
[423468772,1780147844000,-150.0,0.00013787,2]
[423468775,1780147844000,-150.0,0.00013804,2]
[423468774,1780147844000,-151.0,0.000138,2]
[423468778,1780147844000,-1545.0,0.00013818,2]
[423468776,1780147844000,-150.0,0.00013807,2]
[423468781,1780147844000,-150.0,0.0001383,2]
[423468779,1780147844000,-1545.0,0.00013818,2]
[423468783,1780147844000,-166.66,0.00013836,2]
[423468782,1780147844000,-150.0,0.00013835,2]
[423468780,1780147844000,-150.0,0.00013822,2]
[423468784,1780147844000,-1545.0,0.00013839,2]
[423468786,1780147844000,-150.0,0.00013839,2]
[423468787,1780147844000,-150.0,0.00013854,2]
[423468789,1780147844000,-13659.93918001,0.00013863,2]
[423468788,1780147844000,-150.0,0.00013856,2]
[423468793,1780147844000,-458.14,0.00013881,2]
[423468791,1780147844000,-500.0,0.00013873,2]
[423468785,1780147844000,-1545.0,0.00013839,2]
[423468792,1780147844000,-150.0,0.00013873,2]
[423468790,1780147844000,-151.0,0.00013869,2]
[423468730,1780147844000,-500.0,0.00013699,2]
[423468767,1780147844000,-22799.93006848,0.00013762,2]
[423468770,1780147844000,-150.0,0.0001377,2]
[423468777,1780147844000,-150.0,0.00013814,2]
[423468762,1780147844000,-150.0,0.00013752,2]
[423468764,1780147844000,-150.0,0.00013761,2]
[423468737,1780147844000,-500.0,0.00013699,2]
[423468736,1780147844000,-500.0,0.00013699,2]
[423468735,1780147844000,-500.0,0.00013699,2]
[423468733,1780147844000,-500.0,0.00013699,2]
[423468742,1780147844000,-500.0,0.00013699,2]
[423468740,1780147844000,-500.0,0.00013699,2]
[423468749,1780147844000,-500.0,0.00013699,2]
[423468750,1780147844000,-500.0,0.00013699,2]
[423468743,1780147844000,-500.0,0.00013699,2]
[423468746,1780147844000,-500.0,0.00013699,2]
[423468741,1780147844000,-500.0,0.00013699,2]
[423468747,1780147844000,-500.0,0.00013699,2]
[423468748,1780147844000,-500.0,0.00013699,2]
[423468744,1780147844000,-500.0,0.00013699,2]
[423468754,1780147844000,-500.0,0.00013699,2]
[423468745,1780147844000,-500.0,0.00013699,2]
[423468756,1780147844000,-150.0,0.00013714,2]
[423468760,1780147844000,-150.0,0.00013735,2]
[423468759,1780147844000,-1590.0,0.0001372,2]
[423468761,1780147844000,-150.0,0.00013743,2]
[423468751,1780147844000,-500.0,0.00013699,2]
[423468758,1780147844000,-150.0,0.0001372,2]
[423468757,1780147844000,-150.0,0.00013718,2]
[423468753,1780147844000,-500.0,0.00013699,2]
[423468752,1780147844000,-500.0,0.00013699,2]
[423468739,1780147844000,-500.0,0.00013699,2]
[423468755,1780147844000,-150.0,0.000137,2]
[423468843,1780147845000,-362.56632596,0.0001394,2]
[423468830,1780147845000,-1584.63,0.00013916,2]
[423468842,1780147845000,-1584.63,0.0001393,2]
[423468835,1780147845000,-150.0,0.00013925,2]
[423468831,1780147845000,-1584.63,0.00013916,2]
[423468832,1780147845000,-184.9,0.00013916,2]
[423468828,1780147845000,-574.86,0.00013916,2]
[423468829,1780147845000,-1584.63,0.00013916,2]
[423468833,1780147845000,-1584.63,0.00013916,2]
[423468824,1780147845000,-559.15,0.00013913,2]
[423468825,1780147845000,-393.42,0.00013913,2]
[423468838,1780147845000,-500.0,0.0001393,2]
[423468836,1780147845000,-500.0,0.0001393,2]
[423468837,1780147845000,-500.0,0.0001393,2]
[423468850,1780147845000,-150.0,0.0001396,2]
[423468846,1780147845000,-150.0,0.00013947,2]
[423468841,1780147845000,-1584.63,0.0001393,2]
[423468844,1780147845000,-150.0,0.0001394,2]
[423468849,1780147845000,-150.0,0.00013956,2]
[423468848,1780147845000,-1584.63,0.00013949,2]
[423468845,1780147845000,-150.0,0.00013943,2]
[423468840,1780147845000,-1584.63,0.0001393,2]
[423468847,1780147845000,-150.0,0.00013947,2]
[423468857,1780147845000,-7530.82803598,0.00013991,2]
[423468852,1780147845000,-1581.31857951,0.00013975,2]
[423468860,1780147845000,-150.0,0.00013995,2]
[423468861,1780147845000,-1500.0,0.00014,2]